bitfinex/quotes_SOLUSD_20250129
["timestamp","ask_amount","ask_price","bid_price","bid_amount"]
[1738169867391,12.79184043,226.62,226.55,0.69199209]
[1738169867967,0.41649193,226.61,226.55,0.03]
[1738169868266,12.79184043,226.6,226.55,0.03]
[1738169869084,14.11564043,226.62,226.55,0.03]
[1738169869285,0.41649193,226.63,226.55,0.03]
[1738169869492,12.79184043,226.64,226.55,0.03]
[1738169869668,13.20833236,226.66,226.55,0.03]
[1738169869867,14.53183236,226.66,226.55,0.03]
[1738169870384,0.41649193,226.67,226.55,0.03]
[1738169870689,1.73999193,226.67,226.56,4.4138]
[1738169870875,0.41649193,226.67,226.57,0.66185008]
[1738169871078,32.79184043,226.68,226.58,1.5925]
[1738169871283,12.79184043,226.68,226.59,6.96019856]
[1738169872181,0.063,226.69,226.6,4.413]
[1738169872483,0.063,226.69,226.61,0.66173274]
[1738169873089,0.063,226.66,226.61,0.66173274]
[1738169875071,0.063,226.66,226.62,4.4126]
[1738169875268,0.063,226.66,226.63,0.66171224]
[1738169877466,0.063,226.66,226.64,4.4122]
[1738169877675,0.063,226.66,226.65,0.66170843]
[1738169878791,0.063,226.66,226.65,5.07370843]
[1738169881003,0.063,226.69,226.66,30.826684]
[1738169881243,0.063,226.69,226.67,0.66151749]
[1738169881523,0.063,226.69,226.67,30.66151749]
[1738169882125,0.063,226.69,226.68,24.027864]
[1738169882309,0.063,226.69,226.68,29.439364]
[1738169882733,12.79184043,226.8,226.71,23.776884]
[1738169883022,0.063,226.82,226.72,0.66138175]
[1738169883023,12.85484043,226.82,226.72,0.66138175]
[1738169883411,12.85484043,226.82,226.72,1.66138175]
[1738169883609,0.063,226.82,226.74,1.5188]
[1738169883914,0.063,226.82,226.75,0.6612956]
[1738169884230,0.063,226.82,226.76,4.4099]
[1738169884427,0.063,226.82,226.77,0.66129446]
[1738169885638,0.063,226.82,226.79,20.0]
[1738169885802,0.063,226.82,226.81,30.0]
[1738169886006,0.063,226.82,226.81,31.66113292]
[1738169886207,0.063,226.82,226.81,66.29739692]
[1738169886903,0.063,226.82,226.81,69.33739692]
[1738169887226,0.063,226.82,226.81,68.33739692]
[1738169887406,0.063,226.82,226.81,11.26953292]
[1738169888811,0.063,226.82,226.81,323.26953292]
[1738169889013,0.063,226.82,226.81,322.6084]
[1738169890527,0.063,226.82,226.81,10.6084]
[1738169890712,0.063,226.82,226.81,11.26955791]
[1738169898242,0.063,226.82,226.81,0.66115791]
[1738169898410,0.063,226.82,226.81,4.4089]
[1738169899829,0.0001,226.82,226.81,233.862254]
[1738169900838,0.0001,226.82,226.81,546.525784]
[1738169901015,0.0001,226.82,226.81,522.7489]
[1738169901611,0.0001,226.82,226.81,210.7489]
[1738169901836,0.0001,226.82,226.81,234.525784]
[1738169902332,0.0001,226.82,226.81,234.776764]
[1738169903139,0.0001,226.82,226.81,235.776764]
[1738169904332,0.0001,226.84,226.83,52.37647]
[1738169904539,0.0001,226.84,226.83,388.81431732]
[1738169904729,0.0001,226.84,226.83,388.278844]
[1738169905837,0.0001,226.84,226.83,392.687344]
[1738169907038,0.0001,226.84,226.83,391.561854]
[1738169907241,0.0001,226.84,226.83,79.561854]
[1738169907535,0.0001,226.84,226.83,80.22287288]
[1738169907741,0.0001,226.84,226.83,81.22287288]
[1738169908442,0.0001,226.84,226.83,284.52287288]
[1738169908641,0.0001,226.84,226.83,283.861854]
[1738169909230,0.0001,226.84,226.83,282.861854]
[1738169910246,0.0001,226.84,226.83,594.861854]
[1738169911547,0.0001,226.84,226.83,572.08497]
[1738169911839,0.0001,226.84,226.83,257.7085]
[1738169912257,0.0001,226.84,226.83,281.485384]
[1738169914932,0.063,226.92,226.87,30.0]
[1738169915139,0.063,226.92,226.88,24.43777755]
[1738169917555,0.063,226.92,226.88,5.06849355]
[1738169918332,0.063,226.92,226.86,5.06881832]
[1738169921336,0.063,226.92,226.86,317.06881832]
[1738169921656,0.063,226.92,226.86,316.4078]
[1738169922032,0.063,226.92,226.88,4.4076]
[1738169922232,0.063,226.92,226.88,5.06850519]
[1738169923757,0.063,226.92,226.88,262.14538919]
[1738169923962,0.063,226.92,226.88,261.484484]
[1738169924531,0.063,226.92,226.88,261.735464]
[1738169926354,0.063,226.92,226.88,261.860954]
[1738169926564,0.063,226.92,226.91,20.0]
[1738169926732,0.063,226.92,226.91,44.43768745]
[1738169927958,0.063,226.92,226.91,78.84468745]
[1738169928441,0.063,226.93,226.92,0.25098]
[1738169928649,0.063,227.01,226.95,30.0]
[1738169928955,0.063,227.01,226.96,0.66066761]
[1738169929844,0.063,227.01,226.97,4.4058]
[1738169930044,0.063,227.01,226.98,0.66067959]
[1738169931843,0.063,227.01,226.97,4.4058]
[1738169932061,0.063,227.01,226.98,0.66077636]
[1738169932359,0.063,227.01,226.95,5.06686621]
[1738169933457,0.063,227.01,226.96,23.776884]
[1738169933659,0.063,227.01,226.97,0.66066892]
[1738169934240,0.063,227.01,226.94,4.4064]
[1738169934453,0.063,227.01,226.95,0.66079684]
[1738169934761,1.3845,227.01,226.93,5.06739655]
[1738169935143,0.063,227.01,226.93,5.06739655]
[1738169940246,1.3845,227.01,226.93,0.66079655]
[1738169940649,1.80099193,227.01,226.93,5.06739655]
[1738169940849,1.80099193,227.01,226.93,0.66079655]
[1738169941454,9.76643805,227.0,226.92,0.66092301]
[1738169941657,0.41649193,226.99,226.89,4.4072]
[1738169941855,0.41649193,226.99,226.9,0.6609454]
[1738169942466,1.3217,226.98,226.9,0.6609454]
[1738169942949,0.41649193,226.97,226.9,0.6609454]
[1738169943372,1.3218,226.96,226.9,0.6609454]
[1738169944182,1.3218,226.96,226.88,0.69098509]
[1738169945858,1.3218,226.96,226.88,5.09848509]
[1738169948557,0.41649193,226.97,226.9,30.12549]
[1738169948769,0.063,227.01,226.94,23.776884]
[1738169948943,0.063,227.01,226.95,0.66072185]
[1738169950055,0.063,227.01,226.96,4.406]
[1738169950263,0.063,227.01,226.97,0.66071687]
[1738169951245,0.063,227.01,226.97,5.06631687]
[1738169954162,0.063,227.01,226.95,5.06675385]
[1738169957382,20.0,226.96,226.93,0.03]
[1738169957800,20.41649193,226.96,226.93,0.03]
[1738169958702,1.5259,226.98,226.93,0.03]
[1738169958995,3.26409193,226.98,226.93,0.03]
[1738169960582,8.19943805,226.97,226.93,0.03]
[1738169960788,0.41649193,226.96,226.93,0.03]
[1738169961983,1.73829193,226.96,226.93,0.03]
[1738169962180,8.19943805,226.95,226.93,0.03]
[1738169962487,0.41649193,226.94,226.93,0.03]
[1738169963684,0.41649193,226.95,226.93,0.03]
[1738169963875,1.73819193,226.97,226.93,0.03]
[1738169964066,20.0,226.96,226.93,0.03]
[1738169964885,1.3218,226.96,226.93,0.03]
[1738169965084,8.61592998,226.97,226.93,0.03]
[1738169965085,1.5259,226.98,226.93,0.03]
[1738169965293,2.8476,226.98,226.93,0.03]
[1738169966201,1.3218,226.96,226.93,0.03]
[1738169966500,0.41649193,226.95,226.93,0.03]
[1738169967082,1.73829193,226.96,226.93,0.03]
[1738169970004,20.0,226.96,226.93,0.03]
[1738169970892,1.3216,226.99,226.93,0.03]
[1738169971303,1.3215,227.0,226.93,0.03]
[1738169971629,1.3215,227.0,226.93,0.69086222]
[1738169971921,20.0,226.98,226.93,0.69086222]
[1738169973826,21.3217,226.98,226.93,0.69086222]
[1738169974206,8.61592998,226.97,226.93,0.03]
[1738169974907,8.19943805,226.97,226.93,0.03]
[1738169976227,1.3217,226.97,226.93,0.03]
[1738169976408,1.3216,226.99,226.93,0.69089731]
[1738169976822,8.19943805,226.97,226.93,0.03]
[1738169979039,1.3218,226.96,226.93,0.03]
[1738169984629,20.0,226.94,226.93,0.03]
[1738169984820,21.3219,226.94,226.93,0.03]
[1738169986948,1.57288,226.94,226.93,0.03]
[1738169987149,0.12549,226.9,226.88,0.03]
[1738169987433,8.61592998,226.89,226.88,0.03]
[1738169988636,9.93812998,226.89,226.88,0.03]
[1738169989922,1.3222,226.89,226.88,0.03]
[1738169990635,8.19943805,226.9,226.88,0.03]
[1738169991139,29.52153805,226.91,226.88,0.03]
[1738169992033,21.3221,226.91,226.88,0.03]
[1738169992426,29.52153805,226.91,226.88,0.03]
[1738169994638,8.19943805,226.89,226.88,0.03]
[1738169996148,9.52163805,226.89,226.88,0.03]
[1738169996443,8.19943805,226.89,226.88,0.03]
[1738169996649,8.19943805,226.91,226.88,0.03]
[1738169999752,91.19943805,226.95,226.88,0.03]
[1738169999923,8.19943805,226.95,226.88,0.03]
[1738170000125,0.41649193,226.94,226.88,0.69100343]
[1738170000329,0.41649193,226.94,226.88,0.03]
[1738170000530,8.19943805,226.93,226.88,0.03]
[1738170000743,1.3221,226.91,226.88,0.03]
[1738170001356,9.52153805,226.91,226.88,0.03]
[1738170002558,0.41649193,226.9,226.88,0.03]
[1738170002937,8.32492805,226.89,226.88,0.03]
[1738170003856,8.45041805,226.89,226.88,0.03]
[1738170004156,32.22730205,226.89,226.88,0.0001]
[1738170004559,33.54950205,226.89,226.88,0.0001]
[1738170004748,9.77261805,226.89,226.88,0.0001]
[1738170005553,9.64712805,226.89,226.88,0.0001]
[1738170007567,9.77261805,226.89,226.88,0.0001]
[1738170008758,9.64712805,226.89,226.88,0.0001]
[1738170010161,8.19943805,226.91,226.88,0.0001]
[1738170010366,8.19943805,226.93,226.88,0.0001]
[1738170011447,0.41649193,226.92,226.88,0.0001]
[1738170011645,8.19943805,226.91,226.88,0.0001]
[1738170012882,8.19943805,226.93,226.88,0.0001]
[1738170013084,8.19943805,226.93,226.88,0.66112881]
[1738170014178,8.19943805,226.93,226.88,0.0001]
[1738170015781,8.19943805,226.91,226.88,0.0001]
[1738170016688,28.19943805,226.89,226.88,0.0001]
[1738170016979,28.45041805,226.89,226.88,0.0001]
[1738170017158,20.0,226.85,226.83,0.03]
[1738170017358,8.74141998,226.84,226.83,0.03]
[1738170017670,20.0,226.81,226.72,81.7]
[1738170017846,4.6284,226.86,226.73,0.66144605]
[1738170017847,8.19943805,226.85,226.73,0.66144605]
[1738170018053,1.3224,226.86,226.74,24.027864]
[1738170018263,8.19943805,226.87,226.78,23.776884]
[1738170018460,8.19943805,226.87,226.77,8.1062]
[1738170018461,8.19943805,226.89,226.79,0.66123631]
[1738170018662,12.82781725,226.9,226.79,0.66123631]
[1738170018871,12.82781725,226.88,226.79,0.66123631]
[1738170019080,20.0,226.85,226.79,0.66123631]
[1738170019559,14.15001725,226.88,226.79,5.07053631]
[1738170021274,12.82781725,226.88,226.79,5.07053631]
[1738170021480,14.15001725,226.9,226.79,5.07053631]
[1738170021683,14.15001725,226.9,226.8,23.776884]
[1738170021865,14.15001725,226.9,226.81,0.66112576]
[1738170022067,12.82781725,226.92,226.81,0.66112576]
[1738170022267,1.3221,226.92,226.82,23.776884]
[1738170022565,1.3221,226.92,226.83,0.66106015]
[1738170022969,14.21271725,226.94,226.83,0.66106015]
[1738170023170,14.21271725,226.94,226.84,7.7522]
[1738170023373,14.21271725,226.94,226.85,0.66104745]
[1738170023983,14.21271725,226.94,226.85,5.06914745]
[1738170024277,14.21271725,226.94,226.85,0.66104745]
[1738170024477,12.82781725,226.92,226.85,0.66104745]
[1738170024679,0.41649193,226.93,226.84,7.7522]
[1738170024680,12.82781725,226.88,226.84,7.7522]
[1738170024999,12.82781725,226.86,226.77,86.1095]
[1738170025181,12.82781725,226.86,226.78,0.66124971]
[1738170025694,1.3224,226.85,226.78,0.66124971]
[1738170025988,1.73889193,226.85,226.78,0.66124971]
[1738170026194,1.3224,226.85,226.79,0.66132504]
[1738170026395,12.82781725,226.84,226.77,0.66130734]
[1738170026884,12.82781725,226.82,226.76,8.2058]
[1738170027777,14.15041725,226.82,226.76,8.2058]
[1738170028574,14.15041725,226.82,226.77,0.66138352]
[1738170028776,14.15041725,226.82,226.76,8.2058]
[1738170029168,0.41649193,226.81,226.76,8.2058]
[1738170029881,1.3227,226.8,226.76,8.2058]
[1738170030786,14.15041725,226.82,226.76,8.2058]
[1738170031081,14.56680918,226.84,226.77,0.66141148]
[1738170031588,12.82781725,226.82,226.76,8.2058]
[1738170031787,0.41649193,226.81,226.74,0.66143259]
[1738170031989,1.73919193,226.81,226.74,0.66143259]
[1738170032284,12.82781725,226.78,226.71,8.3091]
[1738170032496,0.41649193,226.77,226.71,8.3091]
[1738170032865,12.82781725,226.78,226.72,0.66153525]
[1738170033261,13.24430918,226.84,226.73,0.6615012]
[1738170033561,0.41649193,226.89,226.75,23.776884]
[1738170033764,83.0,226.96,226.79,4.4093]
[1738170033765,1.3221,226.91,226.79,4.4093]
[1738170033985,14.56630918,226.92,226.81,7.6792]
[1738170034192,14.56630918,226.92,226.82,0.66114318]
[1738170034492,20.0,226.89,226.82,0.66114318]
[1738170034785,14.21271725,226.94,226.82,0.66114318]
[1738170034989,12.89081725,226.94,226.83,53.776884]
[1738170035164,12.89081725,226.94,226.84,0.66102053]
[1738170035365,0.41649193,226.93,226.84,0.66102053]
[1738170035587,14.21271725,226.94,226.84,0.66102053]
[1738170036370,14.21271725,226.94,226.85,4.4081]
[1738170036579,14.21271725,226.94,226.86,0.66102971]
[1738170039389,0.063,226.94,226.87,23.776884]
[1738170039579,0.063,226.94,226.88,0.66093515]
[1738170039775,0.063,226.94,226.89,23.776884]
[1738170039981,0.063,226.94,226.9,8.76509047]
[1738170040180,0.063,226.94,226.9,8.1042]
[1738170042981,0.063,226.94,226.91,0.6609736]
[1738170045303,0.063,226.94,226.91,5.0678736]
[1738170045675,0.063,226.94,226.92,23.776884]
[1738170045975,0.063,226.94,226.93,24.43765529]
[1738170046177,0.063,226.94,226.93,0.66077129]
[1738170046792,0.063,226.94,226.92,0.66083182]
[1738170047271,0.063,226.94,226.93,4.4066]
[1738170047466,0.063,226.94,226.93,34.4066]
[1738170047672,0.063,226.94,226.93,58.183484]
[1738170047879,0.063,226.94,226.93,140.79517092]
[1738170048089,0.063,226.94,226.93,140.134464]
[1738170048480,0.063,226.94,226.93,261.734464]
[1738170048997,0.063,226.94,226.93,262.985444]
[1738170049592,0.063,226.94,226.93,261.985444]
[1738170050294,0.063,226.94,226.93,262.985444]
[1738170050796,0.063,227.0,226.97,0.25098]
[1738170050997,0.063,227.0,226.98,8.43809313]
[1738170051184,0.063,227.0,226.99,23.776884]
[1738170052098,0.063,227.0,226.99,28.182284]
[1738170053284,0.063,227.01,226.99,28.433264]
[1738170053480,0.063,227.01,227.0,30.66061062]
[1738170054496,0.063,227.01,227.0,54.81396462]
[1738170055379,0.063,227.01,227.0,59.21916462]
[1738170055594,0.063,227.05,227.04,54.153354]
[1738170055796,0.063,227.05,227.04,265.99932777]
[1738170055990,0.063,227.05,227.04,265.464444]
[1738170056297,0.063,227.12,227.07,30.0]
[1738170056497,0.063,227.12,227.09,23.776884]
[1738170058198,0.063,227.12,227.09,231.731364]
[1738170058975,0.063,227.12,227.09,231.856854]
[1738170060899,0.063,227.12,227.09,203.3]
[1738170061800,20.063,227.12,227.04,7.8856]
[1738170061998,1.384,227.1,227.05,0.66048206]
[1738170062200,0.063,227.1,227.05,0.66048206]
[1738170063889,1.384,227.1,227.05,0.66048206]
[1738170064281,0.063,227.1,227.05,28.84156606]
[1738170064884,0.063,227.1,227.06,23.776884]
[1738170065084,0.063,227.1,227.09,0.25098]
[1738170065283,0.063,227.12,227.09,0.25098]
[1738170065284,0.063,227.12,227.11,50.25098]
[1738170065598,0.063,227.16,227.15,23.776884]
[1738170065800,0.063,227.16,227.15,24.43699787]
[1738170066385,0.063,227.17,227.15,154.37406787]
[1738170066582,0.063,227.17,227.16,25.278844]
[1738170066783,0.063,227.23,227.17,23.776884]
[1738170067106,0.063,227.23,227.16,30.25098]
[1738170067107,0.063,227.23,227.19,30.0]
[1738170067301,0.063,227.23,227.21,24.278844]
[1738170067493,0.063,227.23,227.22,59.21426066]
[1738170067806,0.063,227.23,227.22,180.81426066]
[1738170068012,0.063,227.23,227.22,180.154354]
[1738170068214,0.063,227.24,227.23,0.25098]
[1738170068506,0.063,227.24,227.23,121.85098]
[1738170068810,0.063,227.24,227.23,145.753354]
[1738170068992,0.063,227.24,227.23,145.878844]
[1738170069513,0.063,227.24,227.23,145.753354]
[1738170070307,0.063,227.33,227.28,23.776884]
[1738170070513,0.063,227.33,227.3,53.776884]
[1738170070689,0.063,227.33,227.31,0.65968417]
[1738170071791,0.063,227.33,227.32,0.6597674]
[1738170071999,0.063,227.33,227.29,0.65976615]
[1738170073497,20.0,227.31,227.22,121.6]
[1738170073699,12.82781725,227.32,227.23,0.65996394]
[1738170073700,13.24430918,227.32,227.23,0.65996394]
[1738170074404,12.82781725,227.3,227.21,0.6599988]
[1738170074602,0.41649193,227.29,227.21,0.6599988]
[1738170074920,20.0,227.31,227.22,23.776884]
[1738170075116,20.0,227.31,227.24,23.776884]
[1738170075304,20.0,227.31,227.25,0.65985302]
[1738170075499,0.063,227.33,227.26,58.177084]
[1738170075714,0.063,227.33,227.29,30.0]
[1738170075911,0.063,227.33,227.3,24.43658991]
[1738170076824,0.063,227.33,227.3,0.65970591]
[1738170077020,0.063,227.33,227.3,24.43658991]
[1738170077314,0.063,227.33,227.32,30.0]
[1738170077522,0.063,227.33,227.32,59.08653049]
[1738170078023,0.063,227.33,227.32,180.68653049]
[1738170078199,0.063,227.33,227.32,180.026864]
[1738170078402,0.063,227.33,227.32,149.775884]
[1738170079721,0.063,227.33,227.3,4.3992]
[1738170079912,0.063,227.33,227.31,0.65976326]
[1738170080116,0.063,227.33,227.29,0.65980111]
[1738170080720,0.063,227.33,227.27,4.4]
[1738170080900,0.063,227.33,227.28,0.65982254]
[1738170082337,21.79919193,227.33,227.26,0.65985241]
[1738170082497,12.82781725,227.32,227.26,0.65985241]
[1738170082834,20.0,227.24,227.08,4.4037]
[1738170083016,13.24430918,227.23,227.1,30.0]
[1738170083202,13.24430918,227.23,227.11,0.66025549]
[1738170083402,20.0,227.18,227.11,0.66025549]
[1738170084132,1.3203,227.22,227.12,24.43716959]
[1738170084308,1.3203,227.22,227.12,122.26028559]
[1738170084622,1.3199,227.28,227.14,0.25098]
[1738170084803,20.0,227.26,227.16,23.776884]
[1738170085006,20.0,227.26,227.18,23.776884]
[1738170085203,20.0,227.26,227.19,0.66010206]
[1738170085726,20.0,227.26,227.15,0.66010182]
[1738170085727,20.45107549,227.24,227.15,0.66010182]
[1738170085933,0.41649193,227.23,227.15,0.66010182]
[1738170086107,20.0,227.25,227.15,0.66010182]
[1738170086312,20.0,227.25,227.16,53.776884]
[1738170086525,20.0,227.25,227.18,23.776884]
[1738170086709,20.0,227.25,227.19,0.66009935]
[1738170088017,0.41649193,227.24,227.16,0.66010349]
[1738170088215,20.45107549,227.28,227.18,0.66010349]
[1738170088413,21.77107549,227.28,227.18,0.66010349]
[1738170088618,1.32,227.28,227.18,0.66010349]
[1738170088911,20.41649193,227.27,227.18,0.66010349]
[1738170089419,1.32,227.26,227.18,0.66010349]
[1738170089935,0.41649193,227.25,227.17,81.7]
[1738170090230,0.41649193,227.25,227.18,0.66018775]
[1738170090809,1.32,227.26,227.18,0.66018775]
[1738170091009,21.32,227.26,227.18,0.66018775]
[1738170093036,0.41649193,227.25,227.17,81.7]
[1738170093223,20.0,227.23,227.17,81.7]
[1738170093825,20.0,227.23,227.17,82.3602084]
[1738170094239,21.3202,227.23,227.17,82.3602084]
[1738170094939,0.41649193,227.22,227.1,203.3]
[1738170095112,20.86756742,227.22,227.11,0.66030241]
[1738170096140,20.86756742,227.22,227.11,0.72330241]
[1738170096317,1.3203,227.21,227.11,0.72330241]
[1738170096520,0.41649193,227.2,227.11,0.72330241]
[1738170096917,1.73679193,227.21,227.11,5.12640241]
[1738170097118,0.41649193,227.21,227.12,23.776884]
[1738170097333,1.3202,227.23,227.14,23.776884]
[1738170097638,1.3202,227.23,227.15,0.6601989]
[1738170098441,20.0,227.23,227.15,0.6601989]
[1738170098643,20.0,227.23,227.15,5.0624989]
[1738170099930,20.41649193,227.23,227.15,5.0624989]
[1738170100142,20.0,227.23,227.15,5.0624989]
[1738170100817,21.3202,227.23,227.15,5.0624989]
[1738170101324,20.0,227.21,227.14,0.66018402]
[1738170101529,20.0,227.19,227.12,82.36030409]
[1738170102930,21.3204,227.19,227.12,86.76320409]
[1738170103132,21.3204,227.19,227.12,86.1029]
[1738170103337,21.3204,227.19,227.12,86.76319695]
[1738170103522,21.3204,227.19,227.12,82.36029695]
[1738170104032,0.41649193,227.18,227.11,0.72334397]
[1738170104233,20.0,227.17,227.11,0.72334397]
[1738170105042,21.3206,227.17,227.11,0.72334397]
[1738170105349,21.3206,227.17,227.11,0.063]
[1738170106229,20.0,227.15,227.11,0.063]
[1738170106420,0.41649193,227.14,227.11,0.063]
[1738170106624,1.73709193,227.17,227.11,0.063]
[1738170107032,1.73709193,227.17,227.11,0.72344562]
[1738170107033,20.0,227.15,227.11,0.72344562]
[1738170107234,1.3204,227.19,227.11,5.12654562]
[1738170107651,20.0,227.19,227.11,5.12654562]
[1738170107947,1.3203,227.21,227.12,23.776884]
[1738170108131,21.3203,227.21,227.13,0.66023451]
[1738170108521,21.3203,227.21,227.13,5.06283451]
[1738170108741,1.73679193,227.23,227.14,23.776884]
[1738170108946,1.3203,227.23,227.15,0.66018024]
[1738170109456,1.3501,227.26,227.16,23.776884]
[1738170109767,0.03,227.26,227.17,7.27338665]
[1738170109962,0.03,227.26,227.18,23.776884]
[1738170110130,0.03,227.26,227.19,0.66005065]
[1738170110831,0.03,227.26,227.2,4.4014]
[1738170111050,0.03,227.26,227.21,0.66007404]
[1738170113364,0.03,227.26,227.23,23.776884]
[1738170113545,0.03,227.26,227.24,0.65990656]
[1738170113743,0.03,227.26,227.25,23.776884]
[1738170114465,0.03,227.26,227.24,0.65990656]
[1738170114649,0.03,227.26,227.22,5.06080452]
[1738170115173,0.03,227.26,227.23,23.776884]
[1738170115341,0.03,227.26,227.24,0.65990655]
[1738170116952,0.03,227.26,227.25,4.4004]
[1738170119171,0.03,227.26,227.25,109.877284]
[1738170121490,0.03,227.26,227.25,110.253754]
[1738170121995,0.03,227.26,227.25,231.853754]
[1738170122607,0.063,227.33,227.3,30.0]
[1738170122761,0.063,227.33,227.32,23.776884]
[1738170123477,0.063,227.33,227.32,28.175884]
[1738170125768,0.063,227.33,227.32,232.26098623]
[1738170125976,0.063,227.33,227.32,231.601374]
[1738170129107,0.063,227.33,227.32,231.475884]
[1738170129676,0.063,227.33,227.32,203.3]
[1738170129891,0.063,227.33,227.27,4.4]
[1738170130076,0.063,227.33,227.28,0.65980367]
[1738170130808,0.063,227.33,227.29,23.776884]
[1738170130992,0.063,227.33,227.31,23.776884]
[1738170131198,0.063,227.33,227.32,0.65970972]
[1738170132611,0.063,227.33,227.31,23.776884]
[1738170132817,0.063,227.33,227.32,0.65972557]
[1738170133302,0.063,227.33,227.32,28.83560957]
[1738170133910,0.063,227.33,227.32,58.96109957]
[1738170134110,0.063,227.33,227.32,140.66109957]
[1738170134294,0.063,227.33,227.32,140.001374]
[1738170135722,0.063,227.33,227.32,109.875884]
[1738170135922,0.063,227.33,227.32,81.7]
[1738170136423,0.063,227.33,227.32,109.875884]
[1738170136627,0.063,227.33,227.32,140.001374]
[1738170137531,0.063,227.33,227.32,261.852354]
[1738170137711,0.0001,227.33,227.32,261.977844]
[1738170139539,0.063,227.39,227.38,53.902374]
[1738170139843,0.063,227.39,227.38,136.26182509]
[1738170140009,0.063,227.39,227.38,135.602374]
[1738170140618,0.063,227.39,227.38,140.000274]
[1738170141210,0.063,227.39,227.38,109.874784]
[1738170141929,0.063,227.39,227.38,105.476884]
[1738170142638,0.063,227.39,227.38,109.874784]
[1738170144216,0.063,227.39,227.38,110.000274]
[1738170144424,0.063,227.39,227.38,140.000274]
[1738170150943,0.063,227.39,227.38,140.125764]
[1738170151236,0.063,227.39,227.38,140.251254]
[1738170151442,0.063,227.39,227.38,140.125764]
[1738170151937,0.063,227.39,227.38,140.000274]
[1738170154241,0.063,227.39,227.38,180.276744]
[1738170157746,0.063,227.39,227.38,261.976744]
[1738170159971,0.063,227.39,227.38,261.851254]
[1738170160151,0.063,227.39,227.38,261.725764]
[1738170162341,0.063,227.39,227.38,261.474784]
[1738170162546,0.063,227.39,227.38,237.6979]
[1738170162874,0.063,227.39,227.38,81.7]
[1738170163174,0.063,227.39,227.38,82.35955656]
[1738170163680,0.063,227.39,227.38,106.13644056]
[1738170163975,0.063,227.39,227.38,105.476884]
[1738170166883,0.063,227.39,227.38,109.874784]
[1738170172291,0.063,227.39,227.38,81.7]
[1738170172489,0.063,227.39,227.34,81.7]
[1738170172786,8.16484133,227.37,227.33,0.063]
[1738170173277,1.3823,227.39,227.33,0.063]
[1738170173278,8.16484133,227.34,227.33,0.063]
[1738170173469,8.29033133,227.34,227.33,0.063]
[1738170173660,9.94693133,227.34,227.33,0.063]
[1738170174060,11.26653133,227.34,227.33,0.063]
[1738170174259,11.26653133,227.34,227.33,0.0001]
[1738170174260,18.77835613,227.34,227.33,0.0001]
[1738170174464,18.77835613,227.34,227.32,0.063]
[1738170174465,0.12549,227.33,227.32,0.0001]
[1738170174766,13.45145495,227.33,227.32,0.0001]
[1738170177487,13.32596495,227.33,227.32,0.0001]
[1738170178759,14.77105495,227.33,227.32,0.0001]
[1738170180174,38.54793895,227.33,227.32,0.0001]
[1738170180398,0.12549,227.28,227.25,0.063]
[1738170180560,20.0,227.26,227.25,0.063]
[1738170181073,0.41649193,227.27,227.25,0.063]
[1738170181263,1.3199,227.29,227.25,0.063]
[1738170181460,21.3199,227.29,227.25,0.063]
[1738170181883,13.20047495,227.32,227.25,0.063]
[1738170182092,1.3197,227.31,227.25,0.063]
[1738170182291,1.3197,227.31,227.26,23.776884]
[1738170182471,12.78398302,227.36,227.27,0.65992809]
[1738170182670,1.3194,227.37,227.28,23.776884]
[1738170182867,0.41649193,227.36,227.29,0.65983827]